Workbook

Sheet Opportunity cost calculator
B1: Additional costs of approving a new technology (each year, £m) | C1: 80
B2: As a percentage of a 1% change in the NHS budget | C2: =C1/Calculation!F1 -> 0.1020434195
C4: Change in NHS spend (£m) | D4: Additional deaths | E4: Life years lost | F4: Total QALYs lost | G4: QALYs lost due to premature death | H4: QALYs lost due to effects on quality of life
B5: Totals | C5: =SUM(C6:C27) -> 80 | D5: 411.2328382 | E5: 1863.764753 | F5: 6186.012063 | G5: 1198.206756 | H5: 4987.805307
B6: Cancer | C6: =Calculation!H3*$C$2 -> 3.579687278 | D6: =Calculation!K3*$C$2 -> 29.94069879 | E6: =Calculation!L3*$C$2 -> 300.0232821 | F6: =Calculation!M3*$C$2 -> 210.6053146 | G6: =Calculation!N3*$C$2 -> 195.0934331 | H6: =Calculation!O3*$C$2 -> 15.51188145
B7: Circulatory | C7: =Calculation!H4*$C$2 -> 6.071477383 | D7: =Calculation!K4*$C$2 -> 182.2385795 | E7: =Calculation!L4*$C$2 -> 927.8268398 | F7: =Calculation!M4*$C$2 -> 862.6195448 | G7: =Calculation!N4*$C$2 -> 589.6033432 | H7: =Calculation!O4*$C$2 -> 273.0162016
B8: Respiratory | C8: =Calculation!H5*$C$2 -> 3.666291333 | D8: =Calculation!K5*$C$2 -> 106.9629866 | E8: =Calculation!L5*$C$2 -> 128.5135964 | F8: =Calculation!M5*$C$2 -> 1834.809376 | G8: =Calculation!N5*$C$2 -> 80.47408705 | H8: =Calculation!O5*$C$2 -> 1754.335289
B9: Gastro-intestinal | C9: =Calculation!H6*$C$2 -> 2.560944666 | D9: =Calculation!K6*$C$2 -> 20.92637061 | E9: =Calculation!L6*$C$2 -> 197.2527706 | F9: =Calculation!M6*$C$2 -> 351.1374258 | G9: =Calculation!N6*$C$2 -> 129.4257413 | H9: =Calculation!O6*$C$2 -> 221.7116845
B10: Infectious diseases | C10: =Calculation!H7*$C$2 -> 2.612418839 | D10: =Calculation!K7*$C$2 -> 5.768742846 | E10: =Calculation!L7*$C$2 -> 42.52936481 | F10: =Calculation!M7*$C$2 -> 125.422819 | G10: =Calculation!N7*$C$2 -> 28.75402601 | H10: =Calculation!O7*$C$2 -> 96.66879299
B11: Endocrine | C11: =Calculation!H8*$C$2 -> 1.51412152 | D11: =Calculation!K8*$C$2 -> 5.391103948 | E11: =Calculation!L8*$C$2 -> 39.71722039 | F11: =Calculation!M8*$C$2 -> 484.6130967 | G11: =Calculation!N8*$C$2 -> 25.96353974 | H11: =Calculation!O8*$C$2 -> 458.649557
B12: Neurological | C12: =Calculation!H9*$C$2 -> 4.782180343 | D12: =Calculation!K9*$C$2 -> 9.64922438 | E12: =Calculation!L9*$C$2 -> 51.821437 | F12: =Calculation!M9*$C$2 -> 872.5942669 | G12: =Calculation!N9*$C$2 -> 34.15347177 | H12: =Calculation!O9*$C$2 -> 838.4407951
B13: Genito-urinary | C13: =Calculation!H10*$C$2 -> 3.708352297 | D13: =Calculation!K10*$C$2 -> 17.97964534 | E13: =Calculation!L10*$C$2 -> 26.16190561 | F13: =Calculation!M10*$C$2 -> 84.64101019 | G13: =Calculation!N10*$C$2 -> 16.51621584 | H13: =Calculation!O10*$C$2 -> 68.12479435
B14: Trauma & injuries* | C14: =Calculation!H11*$C$2 -> 6.159161295 | D14: =Calculation!K11*$C$2 -> 0 | E14: =Calculation!L11*$C$2 -> 0 | F14: =Calculation!M11*$C$2 -> 0 | G14: =Calculation!N11*$C$2 -> 0 | H14: =Calculation!O11*$C$2 -> 0
B15: Maternity & neonates* | C15: =Calculation!H12*$C$2 -> 5.460604345 | D15: =Calculation!K12*$C$2 -> 0.04547071869 | E15: =Calculation!L12*$C$2 -> 3.394183012 | F15: =Calculation!M12*$C$2 -> 3.678155456 | G15: =Calculation!N12*$C$2 -> 2.530976121 | H15: =Calculation!O12*$C$2 -> 1.147179335
B16: Disorders of Blood | C16: =Calculation!H13*$C$2 -> 1.64535173 | D16: =Calculation!K13*$C$2 -> 2.918581547 | E16: =Calculation!L13*$C$2 -> 13.22741987 | F16: =Calculation!M13*$C$2 -> 174.68948 | G16: =Calculation!N13*$C$2 -> 8.98591421 | H16: =Calculation!O13*$C$2 -> 165.7035658
B17: Mental Health | C17: =Calculation!H14*$C$2 -> 14.28535939 | D17: =Calculation!K14*$C$2 -> 22.66337281 | E17: =Calculation!L14*$C$2 -> 102.7135761 | F17: =Calculation!M14*$C$2 -> 762.1337592 | G17: =Calculation!N14*$C$2 -> 66.5144157 | H17: =Calculation!O14*$C$2 -> 695.6193435
B18: Learning Disability | C18: =Calculation!H15*$C$2 -> 0.8294915012 | D18: =Calculation!K15*$C$2 -> 0.3487343374 | E18: =Calculation!L15*$C$2 -> 1.580512804 | F18: =Calculation!M15*$C$2 -> 5.534250287 | G18: =Calculation!N15*$C$2 -> 1.092917544 | H18: =Calculation!O15*$C$2 -> 4.441332743
B19: Problems of Vision | C19: =Calculation!H16*$C$2 -> 1.554252256 | D19: =Calculation!K16*$C$2 -> 0.4137648407 | E19: =Calculation!L16*$C$2 -> 1.875240142 | F19: =Calculation!M16*$C$2 -> 33.94472444 | G19: =Calculation!N16*$C$2 -> 1.343867614 | H19: =Calculation!O16*$C$2 -> 32.60085683
B20: Problems of Hearing | C20: =Calculation!H17*$C$2 -> 0.6992285174 | D20: =Calculation!K17*$C$2 -> 0.2591253224 | E20: =Calculation!L17*$C$2 -> 1.174392212 | F20: =Calculation!M17*$C$2 -> 112.0724975 | G20: =Calculation!N17*$C$2 -> 0.8474474206 | H20: =Calculation!O17*$C$2 -> 111.2250501
B21: Dental problems | C21: =Calculation!H18*$C$2 -> 2.309761512 | D21: =Calculation!K18*$C$2 -> 0.01794640262 | E21: =Calculation!L18*$C$2 -> 0.08133560729 | F21: =Calculation!M18*$C$2 -> 54.3835334 | G21: =Calculation!N18*$C$2 -> 0.05205458046 | H21: =Calculation!O18*$C$2 -> 54.33147882
B22: Skin | C22: =Calculation!H19*$C$2 -> 1.572366277 | D22: =Calculation!K19*$C$2 -> 1.95550747 | E22: =Calculation!L19*$C$2 -> 8.862633423 | F22: =Calculation!M19*$C$2 -> 15.5614565 | G22: =Calculation!N19*$C$2 -> 5.727450766 | H22: =Calculation!O19*$C$2 -> 9.834005734
B23: Musculo skeletal | C23: =Calculation!H20*$C$2 -> 2.901544855 | D23: =Calculation!K20*$C$2 -> 3.123537373 | E23: =Calculation!L20*$C$2 -> 14.15630835 | F23: =Calculation!M20*$C$2 -> 185.6665479 | G23: =Calculation!N20*$C$2 -> 9.224628469 | H23: =Calculation!O20*$C$2 -> 176.4419194
B24: Poisoning and AE | C24: =Calculation!H21*$C$2 -> 0.7421820898 | D24: =Calculation!K21*$C$2 -> 0.3593420871 | E24: =Calculation!L21*$C$2 -> 1.628588609 | F24: =Calculation!M21*$C$2 -> 6.536405905 | G24: =Calculation!N21*$C$2 -> 1.064120203 | H24: =Calculation!O21*$C$2 -> 5.472285702
B25: Healthy Individuals | C25: =Calculation!H22*$C$2 -> 2.827914585 | D25: =Calculation!K22*$C$2 -> 0.2701033097 | E25: =Calculation!L22*$C$2 -> 1.224145986 | F25: =Calculation!M22*$C$2 -> 5.368398155 | G25: =Calculation!N22*$C$2 -> 0.8391053556 | H25: =Calculation!O22*$C$2 -> 4.529292799
B26: Social Care Needs | C26: =Calculation!H23*$C$2 -> 2.403583862 | D26: =Calculation!K23*$C$2 -> 0 | E26: =Calculation!L23*$C$2 -> 0 | F26: =Calculation!M23*$C$2 -> 0 | G26: =Calculation!N23*$C$2 -> 0 | H26: =Calculation!O23*$C$2 -> 0
B27: Other | C27: =Calculation!H24*$C$2 -> 8.11372412 | D27: =Calculation!K24*$C$2 -> 0 | E27: =Calculation!L24*$C$2 -> 0 | F27: =Calculation!M24*$C$2 -> 0 | G27: =Calculation!N24*$C$2 -> 0 | H27: =Calculation!O24*$C$2 -> 0

Sheet Calculation
E1: total change in spend (1% of the budget) | F1: =0.01*F25 -> 783.98
F2: total spend (2008/09), £m | G2: spend elasticities (adjusted) | H2: change in spend | I2: Total deaths (2008-2010) | J2: outcome elasticities | K2: change in deaths | L2: change in LY | M2: change in QALY (total) | N2: change in QALY (dead) | O2: change in QALY (alive)
B3: 2 | D3: 2 | E3: Cancer | F3: 4843 | G3: 0.7243452489 | H3: =F3*G3*0.01 -> 35.08004041 | I3: 131945 | J3: 0.307 | K3: =I3*J3*0.01*G3 -> 293.411363 | L3: 2940.153159 | M3: 2063.879431 | N3: 1911.866871 | O3: 152.0125602
B4: 10 | D4: 10 | E4: Circulatory | F4: 6655 | G4: 0.894048993 | H4: =F4*G4*0.01 -> 59.49896048 | I4: 151443 | J4: 1.319 | K4: =I4*J4*0.01*G4 -> 1785.892519 | L4: 9092.471073 | M4: 8453.455884 | N4: 5777.965363 | O4: 2675.490521
B5: 11 | D5: 11 | E5: Respiratory | F5: 3994 | G5: 0.8995678139 | H5: =F5*G5*0.01 -> 35.92873849 | I5: 64449 | J5: 1.808 | K5: 1048.210528 | L5: 1259.401117 | M5: 17980.67318 | N5: 788.6259345 | O5: 17192.04725
B6: 13 | D6: 13 | E6: Gastro-intestinal | F6: 3989 | G6: 0.6291455876 | H6: 25.09661749 | I6: 23897 | J6: 1.364 | K6: 205.0732004 | L6: 1933.027839 | M6: 3441.058989 | N6: 1268.339908 | O6: 2172.719081
B7: 1 | D7: 1 | E7: Infectious diseases | F7: 1201 | G7: 2.13164459 | H7: 25.60105152 | I7: 5262 | J7: 0.504 | K7: 56.53223771 | L7: 416.7771428 | M7: 1229.112271 | N7: 281.7822664 | O7: 947.3300041
B8: 4 | D8: 4 | E8: Endocrine | F8: 2222 | G8: 0.6677773343 | H8: 14.83801237 | I8: 6762 | J8: 1.17 | K8: 52.83147091 | L8: 389.2188305 | M8: 4749.087195 | N8: 254.4361985 | O8: 4494.650996
B9: 7 | D9: 7 | E9: Neurological | F9: 3466 | G9: 1.352111131 | H9: 46.86417181 | I9: 16771 | J9: 0.417 | K9: 94.55998662 | L9: 507.8371272 | M9: 8551.205667 | N9: 334.695485 | O9: 8216.510182
B10: 17 | D10: 17 | E10: Genito-urinary | F10: 3779 | G10: 0.9616545495 | H10: 36.34092543 | I10: 11345 | J10: 1.615 | K10: 176.1960295 | L10: 256.3801345 | M10: 829.4607396 | N10: 161.8547862 | O10: 667.6059534
B11: 16 | D11: 16 | E11: Trauma & injuries* | F11: 3255 | G11: 1.854323837 | H11: 60.3582409 | I11: 0 | J11: 0 | K11: 0 | L11: 0 | M11: 0 | N11: 0 | O11: 0
B12: 18+19 | D12: 18+19 | E12: Maternity & neonates* | F12: 3978 | G12: 1.345212605 | H12: 53.51255743 | I12: 265 | J12: 0.125 | K12: 0.4456016755 | L12: 33.26214498 | M12: 36.04500393 | N12: 24.80293324 | O12: 11.24207069
B13: 3 | D13: 3 | E13: Disorders of Blood | F13: 998 | G13: 1.615634831 | H13: 16.12403562 | K13: 28.60136952 | L13: 129.6254079 | M13: 1711.913231 | N13: 88.05971278 | O13: 1623.853519
B14: 5 | D14: 5 | E14: Mental Health | F14: 9794 | G14: 1.429374625 | H14: 139.9929507 | K14: 222.0953877 | L14: 1006.567367 | M14: 7468.720307 | N14: 651.8246452 | O14: 6816.895662
B15: 6 | D15: 6 | E15: Learning Disability | F15: 2874 | G15: 0.2828395734 | H15: 8.128809339 | K15: 3.417509323 | L15: 15.48863035 | M15: 54.23426925 | N15: 10.7103187 | O15: 43.52395054
B16: 8 | D16: 8 | E16: Problems of Vision | F16: 1688 | G16: 0.9023272244 | H16: 15.23128355 | K16: 4.054791997 | L16: 18.37688458 | M16: 332.6498133 | N16: 13.16956665 | O16: 319.4802467
B17: 9 | D17: 9 | E17: Problems of Hearing | F17: 417 | G17: 1.643228936 | H17: 6.852264664 | K17: 2.539363378 | L17: 11.50875008 | M17: 1098.282457 | N17: 8.30477286 | O17: 1089.977685
B18: 12 | D18: 12 | E18: Dental problems | F18: 3198 | G18: 0.7077887861 | H18: 22.63508538 | K18: 0.175870259 | L18: 0.7970686176 | M18: 532.9450315 | N18: 0.5101218748 | O18: 532.4349096
B19: 14 | D19: 14 | E19: Skin | F19: 1657 | G19: 0.9299213291 | H19: 15.40879642 | K19: 19.16348433 | L19: 86.85159188 | M19: 152.4983833 | N19: 56.12758565 | O19: 96.37079769
B20: 15 | D20: 15 | E20: Musculo skeletal | F20: 4081 | G20: 0.6967511442 | H20: 28.4344142 | K20: 30.60988537 | L20: 138.7282827 | M20: 1819.485753 | N20: 90.39905284 | O20: 1729.0867
B21: 20 | D21: 20 | E21: Poisoning and AE | F21: 938 | G21: 0.7753943427 | H21: 7.273198934 | K21: 3.521462618 | L21: 15.95976122 | M21: 64.05514376 | N21: 10.42811196 | O21: 53.6270318
B22: 21 | D22: 21 | E22: Healthy Individuals | F22: 1831 | G22: 1.513536644 | H22: 27.71285595 | K22: 2.646944909 | L22: 11.99632463 | M22: 52.60895982 | N22: 8.223022709 | O22: 44.38593711
B23: 22 | D23: 22 | E23: Social Care Needs | F23: 1874 | G23: 1.25691147 | H23: 23.55452095 | K23: 0 | L23: 0 | M23: 0 | N23: 0 | O23: 0
B24: 23 | D24: 23 | E24: Other | F24: 11666 | G24: 0.6815743866 | H24: 79.51246794 | K24: 0 | L24: 0 | M24: 0 | N24: 0 | O24: 0
F25: =SUM(F3:F24) -> 78398 | H25: =SUM(H3:H24) -> 783.98 | K25: =SUM(K3:K24) -> 4029.979007 | L25: =SUM(L3:L24) -> 18264.42864 | M25: =SUM(M3:M24) -> 60621.37171 | N25: =SUM(N3:N24) -> 11742.12666 | O25: =SUM(O3:O24) -> 48879.24506
E26: Threshold cost | M26: =$H$25*1000000/M25 -> 12932.40284
C28: AUXILIARY DATA
E31: YLL per death averted | G31: 4.532139896
